bitfinex/quotes_SOLUSD_20240821
["timestamp","ask_amount","ask_price","bid_price","bid_amount"]
[1724200672305,13.18,142.6,142.52,22.041]
[1724200674601,13.18,142.62,142.52,22.041]
[1724200674790,45.0,142.61,142.54,15.1313]
[1724200675198,45.0,142.62,142.54,15.1313]
[1724200676790,45.0,142.62,142.56,6.0898]
[1724200676993,45.0,142.62,142.57,1.40242757]
[1724200677193,45.0,142.62,142.58,1.40244477]
[1724200677589,13.18,142.65,142.59,16.88115434]
[1724200678992,69.70768615,142.68,142.6,1.03190167]
[1724200678993,49.70768615,142.68,142.6,1.03190167]
[1724200679212,13.18,142.67,142.6,1.03190167]
[1724200679508,13.18,142.67,142.61,1.03218295]
[1724200679707,13.18,142.67,142.61,7.63218295]
[1724200680213,13.18,142.67,142.61,6.6]
[1724200681743,45.0,142.66,142.61,6.6]
[1724200682011,13.18,142.65,142.61,6.6]
[1724200683210,45.0,142.64,142.61,6.6]
[1724200683514,45.0,142.64,142.59,15.4796]
[1724200683515,13.18,142.63,142.59,15.4796]
[1724200683805,13.18,142.61,142.57,6.1742]
[1724200684219,13.18,142.63,142.57,6.1742]
[1724200684398,13.18,142.61,142.57,6.1742]
[1724200684597,13.18,142.63,142.57,6.1742]
[1724200684800,45.0,142.62,142.57,6.1742]
[1724200691112,13.18,142.61,142.57,6.1742]
[1724200692926,45.0,142.62,142.57,6.1742]
[1724200693128,13.18,142.64,142.57,6.1742]
[1724200693129,45.0,142.63,142.57,6.1742]
[1724200697128,13.18,142.62,142.57,6.1742]
[1724200697328,45.0,142.61,142.57,6.1742]
[1724200698059,45.0,142.61,142.55,16.0106]
[1724200701554,13.18,142.63,142.55,16.0106]
[1724200701747,45.0,142.62,142.55,16.0106]
[1724200704774,13.18,142.61,142.55,16.0106]
[1724200705066,45.0,142.6,142.55,16.0106]
[1724200712277,13.18,142.59,142.55,16.0106]
[1724200712473,45.0,142.58,142.54,6.2704]
[1724200712778,13.18,142.58,142.54,6.2704]
[1724200713075,45.0,142.57,142.54,6.2704]
[1724200714680,45.0,142.57,142.52,15.5698]
[1724200714856,13.18,142.56,142.52,15.5698]
[1724200715054,45.0,142.55,142.52,15.5698]
[1724200717072,13.18,142.58,142.52,15.5698]
[1724200717275,45.0,142.57,142.52,15.5698]
[1724200733495,13.18,142.56,142.52,15.5698]
[1724200733695,45.0,142.55,142.52,15.5698]
[1724200738215,45.0,142.55,142.49,23.2918]
[1724200740904,13.18,142.54,142.49,23.2918]
[1724200741220,45.0,142.53,142.49,23.2918]
[1724200741593,45.0,142.53,142.49,16.6533]
[1724200744023,13.18,142.52,142.49,16.6533]
[1724200744323,45.0,142.51,142.49,16.6533]
[1724200744511,13.18,142.54,142.49,16.6533]
[1724200744818,45.0,142.53,142.49,16.6533]
[1724200746250,13.18,142.52,142.45,22.3478]
[1724200746426,45.0,142.51,142.45,22.3478]
[1724200749513,45.0,142.51,142.46,1.40360435]
[1724200749842,45.0,142.51,142.45,22.3478]
[1724200751017,13.18,142.5,142.45,22.3478]
[1724200751319,45.0,142.49,142.45,22.3478]
[1724200756530,45.0,142.49,142.45,21.8478]
[1724200770650,13.18,142.48,142.41,21.2561]
[1724200771158,45.0,142.47,142.41,21.2561]
[1724200778873,45.0,142.48,142.41,21.2561]
[1724200787655,44.5,142.48,142.41,21.2561]
[1724200792977,44.5,142.48,142.41,27.76404092]
[1724200793386,44.5,142.48,142.41,21.2561]
[1724200798273,44.5,142.48,142.41,27.76404092]
[1724200799473,44.5,142.48,142.41,27.7640781]
[1724200800370,13.18,142.47,142.41,27.7640781]
[1724200800568,45.0,142.46,142.41,21.2561]
[1724200802373,13.18,142.45,142.41,21.2561]
[1724200802584,45.0,142.44,142.41,15.2263]
[1724200806083,20.0,142.5,142.41,15.2263]
[1724200806295,13.18,142.47,142.41,15.2263]
[1724200807485,45.0,142.46,142.41,15.2263]
[1724200807683,27.27662405,142.5,142.41,15.2263]
[1724200807890,13.18,142.48,142.41,15.2263]
[1724200808095,45.0,142.47,142.41,15.2263]
[1724200809200,405.6363,142.51,142.42,7.54284791]
[1724200809430,405.6363,142.51,142.42,6.1388]
[1724200809708,13.18,142.49,142.42,12.64800932]
[1724200810513,13.18,142.49,142.42,12.64645859]
[1724200810717,45.0,142.48,142.42,12.64645859]
[1724200811775,45.0,142.48,142.42,12.64645959]
[1724200812201,45.0,142.48,142.43,17.24033501]
[1724200812519,45.0,142.48,142.43,15.8364]
[1724200812700,13.18,142.48,142.43,15.8364]
[1724200814513,45.0,142.49,142.44,1.40387132]
[1724200814729,45.0,142.49,142.43,15.8364]
[1724200818230,13.18,142.48,142.43,15.8364]
[1724200823142,45.0,142.49,142.43,15.8364]
[1724200823143,13.18,142.46,142.43,15.8364]
[1724200823642,45.0,142.45,142.43,15.8364]
[1724200827346,13.18,142.46,142.43,15.8364]
[1724200828213,13.18,142.48,142.43,15.8364]
[1724200828543,45.0,142.47,142.43,15.8364]
[1724200850661,45.0,142.47,142.42,6.1388]
[1724200850662,13.18,142.46,142.42,6.1388]
[1724200850884,45.0,142.45,142.42,6.1388]
[1724200852282,45.0,142.45,142.4,16.4554101]
[1724200863017,13.18,142.44,142.4,16.4554101]
[1724200863180,45.0,142.43,142.4,16.4554101]
[1724200866111,45.0,142.43,142.4,0.8505101]
[1724200871595,13.18,142.42,142.4,0.8505101]
[1724200871924,45.0,142.41,142.4,0.8505101]
[1724200872422,20.0,142.46,142.4,0.8505101]
[1724200872631,33.18,142.45,142.4,0.8505101]
[1724200873716,45.0,142.44,142.4,0.8505101]
[1724200877631,65.0,142.44,142.4,0.8505101]
[1724200878804,45.0,142.44,142.4,0.8505101]
[1724200885023,27.34516427,142.48,142.4,0.8505101]
[1724200885215,33.18,142.46,142.4,0.8505101]
[1724200886238,45.0,142.45,142.4,0.8505101]
[1724200887738,20.0,142.47,142.41,16.0045]
[1724200887941,33.18,142.47,142.41,16.0045]
[1724200888233,20.0,142.46,142.41,16.0045]
[1724200888441,33.18,142.47,142.41,16.0045]
[1724200889022,20.0,142.47,142.41,16.0045]
[1724200889316,33.18,142.47,142.41,16.0045]
[1724200889838,13.18,142.45,142.41,16.0045]
[1724200890040,45.0,142.44,142.41,16.0045]
[1724200896853,33.18,142.47,142.41,16.0045]
[1724200897145,45.0,142.46,142.41,16.0045]
[1724200900019,419.42437104,142.5,142.42,6.5054]
[1724200900254,13.18,142.49,142.42,6.5054]
[1724200901448,45.0,142.48,142.42,6.5054]
[1724200901636,13.18,142.49,142.42,7.90941606]
[1724200901829,13.18,142.49,142.42,6.5054]
[1724200902544,13.18,142.49,142.42,13.01313925]
[1724200902849,45.0,142.48,142.42,13.01313925]
[1724200903226,22.70437104,142.5,142.43,17.36903105]
[1724200903421,13.18,142.51,142.43,17.36903105]
[1724200903850,13.18,142.51,142.43,15.9661]
[1724200904039,23.11170437,142.51,142.43,15.9661]
[1724200904328,9.93170437,142.5,142.43,15.9661]
[1724200904826,45.0,142.49,142.43,15.9661]
[1724200906727,58.18,142.49,142.43,15.9661]
[1724200909961,45.0,142.49,142.43,17.06681964]
[1724200910323,45.0,142.5,142.43,17.06681964]
[1724200911543,9.93170437,142.53,142.44,21.23918887]
[1724200911732,403.08,142.55,142.46,13.18]
[1724200911931,403.08,142.55,142.47,24.27596629]
[1724200912739,403.08,142.55,142.47,22.8725]
[1724200912740,413.01170437,142.55,142.47,22.8725]
[1724200913050,399.83170437,142.55,142.47,6.6553]
[1724200913355,389.9,142.55,142.48,16.2954]
[1724200914337,45.0,142.54,142.48,16.2954]
[1724200914545,389.9,142.55,142.48,16.2954]
[1724200920265,45.0,142.54,142.48,16.2954]
[1724200920834,389.9,142.55,142.48,16.2954]
[1724200921031,389.9,142.55,142.48,29.4754]
[1724200922043,389.9,142.55,142.49,6.2446]
[1724200922451,389.9,142.55,142.5,16.0421]
[1724200926343,13.18,142.58,142.5,16.0421]
[1724200926544,45.0,142.57,142.5,16.0421]
[1724200928759,9.9266221,142.61,142.51,1.40304026]
[1724200928959,13.18,142.6,142.5,29.2221]
[1724200929162,13.18,142.58,142.5,29.2221]
[1724200931166,13.18,142.58,142.5,16.0421]
[1724200931471,45.0,142.57,142.51,1.40197003]
[1724200931644,13.18,142.58,142.5,16.0421]
[1724200937177,9.9266221,142.61,142.53,13.18]
[1724200937373,13.18,142.63,142.55,22.2669]
[1724200938758,13.18,142.61,142.55,22.2669]
[1724200939279,45.0,142.6,142.55,22.2669]
[1724200939776,45.0,142.61,142.55,22.2669]
[1724200942589,13.18,142.6,142.55,22.2669]
[1724200942771,45.0,142.59,142.55,22.2669]
[1724200944761,45.0,142.59,142.51,15.1287]
[1724200944762,13.18,142.58,142.51,15.1287]
[1724200946383,45.0,142.59,142.51,15.1287]
[1724200946591,58.18,142.59,142.51,15.1287]
[1724200946777,58.18,142.59,142.51,28.3087]
[1724200951668,13.18,142.63,142.53,13.18]
[1724200951888,20.0,142.62,142.54,16.3073]
[1724200952082,20.0,142.62,142.55,1.40196088]
[1724200952286,20.0,142.62,142.54,16.3073]
[1724200953180,45.0,142.61,142.54,17.70925873]
[1724200953698,45.0,142.61,142.55,1.40274827]
[1724200954303,45.0,142.61,142.54,16.3073]
[1724200955801,45.0,142.61,142.56,6.0067]
[1724200956018,13.18,142.64,142.57,1.21387063]
[1724200956235,45.0,142.63,142.57,1.21387063]
[1724200957797,389.9,142.65,142.58,15.0657]
[1724200957998,403.08,142.65,142.58,15.0657]
[1724200963307,45.0,142.64,142.58,15.0657]
[1724200963906,13.18,142.63,142.58,15.0657]
[1724200964139,13.18,142.61,142.56,6.0067]
[1724200964312,45.0,142.62,142.56,6.0067]
[1724200964313,13.18,142.59,142.56,6.0067]
[1724200965733,45.0,142.62,142.56,6.0067]
[1724200965910,13.18,142.59,142.56,6.0067]
[1724200968226,13.18,142.59,142.54,16.4904]
[1724200968426,13.18,142.57,142.54,16.4904]
[1724200968633,13.18,142.59,142.54,16.4904]
[1724200971643,13.18,142.57,142.54,16.4904]
[1724200974032,13.18,142.58,142.54,16.4904]
[1724200977727,13.18,142.6,142.54,16.4904]
[1724200982632,13.18,142.63,142.55,6.4554]
[1724200982824,13.18,142.63,142.56,1.40016924]
[1724200983032,13.18,142.63,142.57,16.0519]
[1724200984560,13.18,142.61,142.57,16.0519]
[1724200985455,13.18,142.63,142.57,16.0519]
[1724200987657,13.18,142.61,142.57,16.0519]
[1724200989243,13.18,142.63,142.57,16.0519]
[1724200990540,13.18,142.61,142.57,16.0519]
[1724200990749,13.18,142.59,142.57,16.0519]
[1724200991836,28.8606489,142.65,142.57,16.0519]
[1724200991837,13.18,142.61,142.57,16.0519]
[1724200992250,68.3961,142.66,142.57,16.0519]
[1724200992251,13.18,142.63,142.58,1.40265701]
[1724200992565,13.18,142.63,142.57,16.0519]
[1724200993049,13.18,142.61,142.57,16.0519]
[1724201007862,13.18,142.59,142.55,6.4554]
[1724201008883,61.91043807,142.63,142.55,6.4554]
[1724201009177,13.18,142.6,142.55,6.4554]
[1724201009954,45.0,142.64,142.55,6.4554]
[1724201010157,13.18,142.6,142.55,6.4554]
[1724201022090,20.0,142.63,142.55,6.4554]
[1724201022315,13.18,142.59,142.55,6.4554]
[1724201024998,45.0,142.62,142.55,6.4554]
[1724201024999,13.18,142.61,142.55,6.4554]
[1724201029906,13.18,142.6,142.55,6.4554]
[1724201034038,45.0,142.59,142.55,6.4554]
[1724201038212,13.18,142.6,142.55,6.4554]
[1724201039247,61.90905941,142.64,142.55,6.4554]
[1724201039554,45.0,142.63,142.55,6.4554]
[1724201039755,13.18,142.61,142.56,1.40275995]
[1724201039958,13.18,142.62,142.56,1.40275995]
[1724201040324,13.18,142.62,142.55,6.4554]
[1724201041254,45.0,142.63,142.55,6.4554]
[1724201041255,13.18,142.6,142.55,6.4554]
[1724201042725,13.18,142.61,142.55,6.4554]
[1724201044929,13.18,142.59,142.55,6.4554]
[1724201046861,13.18,142.57,142.54,15.6636]
[1724201047239,13.18,142.55,142.51,21.3413]
[1724201047437,45.0,142.56,142.51,21.3413]
[1724201047651,58.18,142.56,142.51,21.3413]
[1724201050248,13.18,142.56,142.51,21.3413]
[1724201055848,13.18,142.56,142.52,1.40316621]
[1724201056061,13.18,142.56,142.51,21.3413]
[1724201060783,13.18,142.54,142.51,15.0025]
[1724201061094,13.18,142.54,142.48,22.41074346]
[1724201061292,13.18,142.54,142.49,6.50394346]
[1724201061898,13.18,142.54,142.48,22.41074346]
[1724201065381,13.18,142.54,142.48,15.9068]
[1724201068565,45.0,142.53,142.48,15.9068]
[1724201069996,45.0,142.53,142.47,6.0029]
[1724201071982,45.0,142.53,142.45,6.50497867]
[1724201072170,13.18,142.5,142.44,21.54267867]
[1724201072366,13.18,142.5,142.44,15.0377]
[1724201072578,45.0,142.49,142.44,15.0377]
[1724201079008,45.0,142.49,142.4,30.0980101]
[1724201079184,45.0,142.49,142.41,20.0]
[1724201079602,45.0,142.49,142.41,26.50661375]
[1724201079835,13.18,142.48,142.41,26.50661375]
[1724201082398,13.18,142.48,142.41,20.0]
[1724201083508,13.18,142.51,142.41,26.50666673]
[1724201083899,13.18,142.51,142.41,26.50666471]
[1724201084228,13.18,142.51,142.41,26.50662694]
[1724201085189,13.18,142.51,142.41,20.0]
[1724201085590,13.18,142.51,142.41,26.50665964]
[1724201086316,13.18,142.51,142.41,20.0]
[1724201088031,13.18,142.51,142.41,26.50665898]
[1724201088215,64.077,142.54,142.41,26.50665898]
[1724201088216,13.18,142.49,142.41,26.50665898]
[1724201088540,13.18,142.5,142.41,26.50665898]
[1724201092331,13.18,142.5,142.41,20.0]
[1724201092496,13.18,142.5,142.41,26.50669813]
[1724201095402,42.977,142.54,142.41,26.50669813]
[1724201095600,13.18,142.5,142.42,1.40381999]
[1724201095825,13.18,142.5,142.41,26.50669813]
[1724201096630,13.18,142.5,142.41,20.0]
[1724201097128,13.18,142.5,142.41,26.50635812]
[1724201100431,45.0,142.53,142.42,6.2521]
[1724201100729,13.18,142.54,142.44,13.18]
[1724201100927,13.18,142.52,142.44,6.50624479]
[1724201101330,13.18,142.52,142.45,1.40367513]
[1724201101638,13.18,142.52,142.43,15.4227]
[1724201105427,13.18,142.53,142.45,15.6722]
[1724201106728,35.7491,142.57,142.45,15.6722]
[1724201107039,13.18,142.53,142.46,1.40348666]
[1724201107536,13.18,142.53,142.45,22.17844479]
[1724201107931,13.18,142.53,142.45,22.17752243]
[1724201109921,13.18,142.53,142.46,1.40342045]
[1724201111136,13.18,142.53,142.46,7.90874288]
[1724201111644,13.18,142.53,142.46,6.50532243]
[1724201112054,13.18,142.53,142.45,15.6722]
[1724201112224,13.18,142.53,142.46,6.50528111]
[1724201116760,13.18,142.53,142.47,1.40349595]
[1724201117240,13.18,142.53,142.47,6.50528111]
[1724201117439,13.18,142.53,142.46,6.50528111]
[1724201118163,13.18,142.53,142.47,6.50528111]
[1724201118353,13.18,142.53,142.46,6.50528111]
[1724201118553,13.18,142.53,142.47,6.50528111]
[1724201118758,13.18,142.53,142.46,6.50528111]
[1724201118955,13.18,142.53,142.47,6.50528111]
[1724201119151,13.18,142.53,142.46,6.50528111]
[1724201119348,13.18,142.53,142.47,6.50528111]
[1724201119662,13.18,142.53,142.46,6.50510913]
[1724201119871,13.18,142.53,142.47,6.50510913]
[1724201120162,13.18,142.53,142.46,6.50510913]
[1724201120367,13.18,142.53,142.47,6.50510913]
[1724201120568,13.18,142.53,142.46,6.50510913]
[1724201120745,13.18,142.53,142.47,6.50510913]
[1724201120946,13.18,142.53,142.46,6.50510913]
[1724201121246,13.18,142.53,142.47,6.50510913]
[1724201121448,13.18,142.53,142.46,6.50510913]
[1724201121646,13.18,142.53,142.47,6.50510913]
[1724201121848,13.18,142.53,142.46,6.50510913]
[1724201122444,41.1,142.55,142.46,6.50510913]
[1724201122765,41.1,142.55,142.45,22.17730913]
[1724201122766,13.18,142.51,142.45,22.17730913]
[1724201122971,45.0,142.54,142.45,22.17730913]
[1724201123164,13.18,142.52,142.45,22.17730913]
[1724201124970,45.0,142.55,142.45,22.17730913]
[1724201125180,13.18,142.52,142.45,22.17730913]
[1724201126052,13.18,142.52,142.46,1.40359287]
[1724201126467,15.7491,142.57,142.47,7.88680764]
[1724201126677,13.18,142.57,142.48,36.30401306]
[1724201126844,13.18,142.57,142.49,7.90875956]
[1724201127168,13.18,142.57,142.49,7.90740685]
[1724201127372,13.18,142.57,142.49,7.90734267]
[1724201128359,13.18,142.57,142.49,6.50419617]
[1724201128958,13.18,142.57,142.48,36.30259617]
[1724201129160,389.9,142.58,142.48,36.30259617]
[1724201129359,13.18,142.58,142.49,1.40293508]
[1724201129556,13.18,142.58,142.49,21.40293508]
[1724201129858,13.18,142.58,142.49,27.90713125]
[1724201130186,13.18,142.58,142.49,26.50419617]
[1724201130360,13.66349922,142.62,142.5,21.8635]
[1724201130560,13.18,142.6,142.51,33.18]
[1724201130879,13.18,142.6,142.51,39.68309932]
[1724201131093,13.18,142.6,142.51,39.68308405]
[1724201131264,13.18,142.6,142.51,33.18]
[1724201131777,13.18,142.58,142.51,20.0]
[1724201133481,6.3235,142.62,142.51,20.0]
[1724201133673,13.18,142.59,142.51,20.0]
[1724201134890,13.18,142.59,142.52,15.72]
[1724201136576,45.0,142.61,142.53,6.6562]
[1724201136577,13.18,142.61,142.53,6.6562]
[1724201137003,389.9,142.65,142.54,16.0026]
[1724201137193,13.18,142.63,142.54,16.0026]
[1724201139478,13.18,142.63,142.55,1.40253878]
[1724201140123,13.18,142.61,142.54,16.0026]
[1724201141817,13.18,142.63,142.54,16.0026]
[1724201142032,13.18,142.63,142.55,1.40255414]
[1724201142197,15.1801,142.67,142.55,1.40255414]
[1724201142198,15.1801,142.67,142.55,34.58255414]
[1724201142514,13.18,142.64,142.55,34.58255414]
[1724201142716,13.18,142.64,142.56,22.8983]
[1724201143297,45.0,142.66,142.56,22.8983]
[1724201143495,13.18,142.64,142.56,22.8983]
[1724201144197,13.18,142.64,142.57,1.40239665]
[1724201144422,13.18,142.66,142.58,1.40234258]
[1724201144794,13.18,142.66,142.57,13.18]
[1724201145307,13.18,142.66,142.58,15.5024]
[1724201145625,285.8141,142.7,142.59,1.40221027]
[1724201145791,258.4,142.7,142.59,20.71361027]
[1724201146000,13.18,142.68,142.6,16.5642]
[1724201146210,13.18,142.68,142.61,1.40206634]
[1724201146610,13.18,142.68,142.6,16.5642]
[1724201148420,15.1939,142.71,142.6,16.5642]
[1724201148593,45.0,142.7,142.61,13.18]
[1724201148932,13.18,142.7,142.61,13.18]
[1724201149221,13.18,142.7,142.62,21.67]
[1724201149426,6.71778022,142.76,142.65,13.18]
[1724201149800,13.18,142.74,142.66,6.3853]
[1724201150001,13.18,142.72,142.66,6.3853]
[1724201152323,27.81778022,142.76,142.66,6.3853]
[1724201152324,13.18,142.7,142.66,6.3853]
[1724201152525,13.18,142.71,142.66,6.3853]
[1724201155926,13.18,142.71,142.63,15.1674]
[1724201156136,72.72,142.73,142.63,21.2528]
[1724201156137,13.18,142.69,142.63,21.2528]
[1724201156750,13.18,142.67,142.63,21.2528]
[1724201160651,13.18,142.67,142.63,21.2528]
[1724201160963,13.18,142.69,142.64,1.40204982]
[1724201161134,13.18,142.69,142.63,21.2528]
[1724201161658,13.18,142.69,142.64,1.40185161]
[1724201161833,13.18,142.71,142.64,1.40185161]
[1724201162763,13.18,142.71,142.63,21.2528]
[1724201162957,13.18,142.69,142.63,21.2528]
[1724201163736,52.72,142.73,142.63,21.2528]
[1724201163938,13.18,142.7,142.63,21.2528]
[1724201165166,13.18,142.7,142.64,1.40183117]
[1724201165464,58.18,142.72,142.65,1.40174879]
[1724201166149,58.18,142.72,142.63,34.4328]
[1724201166566,13.18,142.7,142.63,21.2528]
[1724201168849,58.18,142.72,142.64,1.40179423]
[1724201169181,13.18,142.72,142.63,34.4328]
[1724201176592,45.0,142.71,142.63,21.2528]
[1724201178097,389.9,142.74,142.65,13.18]
[1724201178302,389.9,142.74,142.67,15.215]
[1724201178603,389.9,142.74,142.69,6.1412]
[1724201180268,13.18,142.75,142.69,6.1412]
[1724201184398,13.18,142.73,142.69,6.1412]
[1724201185102,21.1,142.77,142.69,6.1412]
[1724201185308,13.18,142.75,142.69,6.1412]
[1724201186013,13.18,142.77,142.69,6.1412]
[1724201186177,13.18,142.77,142.71,16.5882]
[1724201186379,13.18,142.77,142.72,1.17954446]
[1724201187270,13.18,142.77,142.71,16.5882]
[1724201187680,13.18,142.77,142.72,1.40006241]
[1724201189505,13.18,142.77,142.71,16.5882]
[1724201194601,13.18,142.73,142.69,6.1412]
[1724201195432,13.18,142.71,142.67,15.6647]
[1724201199304,21.1,142.78,142.68,1.40062969]
[1724201199517,13.18,142.76,142.69,6.4288]
[1724201199720,13.18,142.76,142.7,1.40128264]
[1724201201430,21.1,142.79,142.7,1.40128264]
[1724201201609,13.18,142.77,142.7,1.40128264]
[1724201202013,13.18,142.77,142.71,15.0628]
[1724201203231,45.0,142.78,142.71,15.0628]
[1724201203429,13.18,142.77,142.71,15.0628]
[1724201204936,13.18,142.78,142.72,1.40128643]
[1724201206342,13.18,142.8,142.73,1.40109012]
[1724201206536,13.18,142.8,142.71,28.2428]
[1724201207648,45.0,142.79,142.71,28.2428]
[1724201207860,13.18,142.78,142.71,15.0628]
[1724201209638,13.18,142.8,142.73,6.1343]
[1724201211762,13.18,142.78,142.73,6.1343]
[1724201215858,21.1,142.83,142.73,6.1343]
[1724201216049,13.18,142.79,142.73,6.1343]
[1724201220258,274.7765,142.85,142.74,17.14754143]
[1724201220462,13.18,142.81,142.74,15.7466]
[1724201220657,13.18,142.81,142.75,1.40080121]
[1724201221534,13.18,142.81,142.74,15.7466]
[1724201224147,13.18,142.81,142.75,1.40073502]
[1724201225146,13.18,142.81,142.74,15.7466]
[1724201226346,13.18,142.79,142.74,15.7466]
[1724201227057,13.18,142.8,142.74,15.7466]
[1724201229465,7.0007,142.85,142.74,15.7466]
[1724201229639,13.18,142.82,142.75,1.39986133]
[1724201230040,13.18,142.82,142.74,15.7466]
[1724201232471,45.0,142.84,142.76,15.7664]
[1724201232767,39.08758232,142.88,142.76,15.7664]
[1724201232768,13.18,142.85,142.76,15.7664]
[1724201232946,13.18,142.85,142.76,28.9464]
[1724201234247,16.2535,142.88,142.76,28.9464]
[1724201234452,13.18,142.85,142.76,28.9464]
[1724201235544,13.18,142.85,142.77,21.644]
[1724201235751,21.1,142.89,142.78,1.40035181]
[1724201235958,13.18,142.86,142.79,15.5689]
[1724201236166,13.18,142.86,142.8,1.40031876]
[1724201236676,13.18,142.86,142.79,15.5689]
[1724201236852,13.18,142.84,142.79,15.5689]
[1724201237052,66.1,142.88,142.79,15.5689]
[1724201237251,13.18,142.84,142.79,15.5689]
[1724201238570,13.18,142.87,142.8,1.40036246]
[1724201238779,13.18,142.87,142.8,1.40027888]
[1724201239572,13.18,142.87,142.79,15.5689]
[1724201239744,45.0,142.88,142.8,6.0674]
[1724201239947,13.18,142.9,142.82,16.1445]
[1724201240148,13.18,142.9,142.83,1.40005995]
[1724201244777,13.18,142.9,142.82,16.1445]
[1724201245121,13.18,142.86,142.82,16.1445]
[1724201246587,13.18,142.84,142.82,16.1445]
[1724201247664,13.18,142.84,142.69,6.49066516]
[1724201247665,13.18,142.84,142.78,16.2277]
[1724201247872,13.18,142.81,142.78,16.2277]
[1724201251001,13.18,142.83,142.78,16.2277]
[1724201251977,433.62838022,142.89,142.78,16.2277]
[1724201252198,13.18,142.86,142.78,16.2277]
[1724201253481,13.18,142.84,142.78,16.2277]
[1724201255102,37.0106,142.89,142.78,16.2277]
[1724201255305,13.18,142.85,142.78,16.2277]
[1724201259423,86.1,142.88,142.78,16.2277]
[1724201259595,13.18,142.85,142.78,16.2277]
[1724201262420,13.18,142.83,142.78,16.2277]
[1724201266607,13.18,142.81,142.78,16.2277]
[1724201268934,13.18,142.79,142.74,15.4009]
[1724201269239,13.18,142.77,142.74,15.4009]
[1724201270632,13.18,142.75,142.72,6.2244]
[1724201271753,13.18,142.75,142.7,15.577]
[1724201274519,45.0,142.74,142.7,15.577]
[1724201274944,13.18,142.73,142.7,15.577]
[1724201278543,45.0,142.74,142.7,15.577]
[1724201278847,13.18,142.75,142.7,15.577]
[1724201281053,15.7303,142.81,142.71,1.40134801]
[1724201281431,13.18,142.79,142.71,1.40134801]
[1724201282124,13.18,142.79,142.72,1.40114684]
[1724201282441,13.18,142.79,142.71,6.4127]
[1724201282820,13.18,142.79,142.72,1.40107777]
[1724201283226,13.18,142.79,142.71,6.4127]
[1724201284243,13.18,142.79,142.72,1.40106996]
[1724201285228,13.18,142.79,142.71,6.4127]
[1724201286030,13.18,142.79,142.72,1.40106788]
[1724201286626,13.18,142.79,142.71,6.4127]
[1724201286845,6.4892,142.84,142.73,16.5348]
[1724201287047,13.18,142.81,142.74,1.40081187]
[1724201287247,13.18,142.81,142.73,16.5348]
[1724201290178,13.18,142.79,142.73,16.5348]
[1724201295745,41.1,142.84,142.74,1.40005014]
[1724201295943,13.18,142.81,142.73,16.5348]
[1724201297448,13.18,142.79,142.73,16.5348]
[1724201298840,66.1,142.83,142.74,6.4707]
[1724201299048,13.18,142.82,142.74,6.4707]
[1724201299283,45.0,142.81,142.74,6.4707]